lending/lending_fUSD_20260310
["ID","MTS","AMOUNT","RATE_DAILY","PERIOD"]
[408125996,1773160262843,-500.0,0.00019726,2]
[408125997,1773160262853,-1021.84,0.00019726,2]
[408125998,1773160262863,-199.09650176,0.00019726,2]
[408125999,1773160262874,-996.7,0.00019726,2]
[408126000,1773160262885,-500.0,0.00019726,2]
[408126001,1773160262895,-500.0,0.00019726,2]
[408126002,1773160262904,-500.0,0.00019726,2]
[408126003,1773160262914,-471.2467849,0.00019726,2]
[408126004,1773160262995,-316.1305,0.00019726,2]
[408126005,1773160263008,-234.4627151,0.00019726,2]
[408126006,1773160263017,-996.7,0.00019726,2]
[408126007,1773160263027,-500.0,0.00019726,2]
[408126008,1773160263036,-500.0,0.00019726,2]
[408126009,1773160263047,-500.0,0.00019726,2]
[408126010,1773160263058,-121.4007404,0.00019726,2]
[408126011,1773160263071,-900.4392596,0.00019726,2]
[408126012,1773160263081,-500.0,0.00019726,2]
[408126013,1773160263093,-996.7,0.00019726,2]
[408126014,1773160263103,-500.0,0.00019726,2]
[408126015,1773160263112,-434.44210018,0.00019726,2]
[408126016,1773160263122,-1021.84,0.00019726,2]
[408126017,1773160263131,-996.7,0.00019726,2]
[408126018,1773160263141,-138.26823023,0.00019726,2]
[408126019,1773160263156,-361.73176977,0.00019726,2]
[408126020,1773160263166,-500.0,0.00019726,2]
[408126021,1773160263175,-203.36687023,0.00019726,2]
[408126022,1773160263188,-818.47312977,0.00019726,2]
[408126023,1773160263199,-500.0,0.00019726,2]
[408126024,1773160263210,-996.7,0.00019726,2]
[408126025,1773160263219,-500.0,0.00019726,2]
[408126026,1773160263230,-500.0,0.00019726,2]
[408126027,1773160263240,-608.52,0.00019726,2]
[408126028,1773160263249,-608.52,0.00019726,2]
[408126029,1773160263258,-500.0,0.00019726,2]
[408126030,1773160263268,-608.52,0.00019726,2]
[408126031,1773160263277,-996.7,0.00019726,2]
[408126032,1773160263287,-500.0,0.00019726,2]
[408126033,1773160263298,-500.0,0.00019726,2]
[408126034,1773160263307,-500.0,0.00019726,2]
[408126035,1773160263316,-578.08192811,0.00019726,2]
[408126036,1773160263335,-30.43807189,0.00019726,2]
[408126037,1773160263345,-340.66042811,0.00019726,2]
[408126038,1773160263357,-315.91,0.00019726,2]
[408126039,1773160263374,-340.12957189,0.00019726,2]
[408126040,1773160263384,-56.57042811,0.00019726,2]
[408126041,1773160263397,-545.40923037,0.00019726,2]
[408126042,1773160263407,-305.45339375,0.00019726,2]
[408126043,1773160263422,-500.0,0.00019726,2]
[408126044,1773160263432,-244.23737588,0.00019726,2]
[408126045,1773160263445,-364.28262412,0.00019726,2]
[408126046,1773160263455,-996.7,0.00019726,2]
[408126047,1773160263464,-608.52,0.00019726,2]
[408126048,1773160263474,-500.0,0.00019726,2]
[408126049,1773160263483,-996.7,0.00019726,2]
[408126050,1773160263492,-627.73564619,0.00019726,2]
[408126051,1773160263502,-996.7,0.00019726,2]
[408126052,1773160263511,-608.52,0.00019726,2]
[408126053,1773160263520,-996.7,0.00019726,2]
[408126054,1773160263530,-500.0,0.00019726,2]
[408126055,1773160263539,-608.52,0.00019726,2]
[408126056,1773160263548,-996.7,0.00019726,2]
[408126057,1773160263559,-500.0,0.00019726,2]
[408126058,1773160263570,-198.92172969,0.00019726,2]
[408126065,1773160578714,162.49,8.084e-05,2]
[408126066,1773160578952,162.49,9.095e-05,2]
[408126067,1773160579156,162.49,0.00010106,2]
[408126068,1773160579434,162.49,0.00011116,2]
[408126069,1773160579633,162.49,0.00012127,2]
[408126070,1773160579850,162.49,0.00013137,2]
[408126071,1773160580137,162.49,0.00014148,2]
[408126073,1773160923778,1571.08,0.00012797,2]
[408126079,1773161297437,-361.8,0.000142,2]
[408126080,1773161297458,-166.66,0.00014972,2]
[408126081,1773161297478,-502.72522659,0.00014972,2]
[408126082,1773161297499,-274.0,0.00014972,2]
[408126083,1773161297523,-250.0,0.00015,2]
[408126084,1773161297548,-162.49,0.00015158,2]
[408126085,1773161297572,-206.90591533,0.00015187,2]
[408126086,1773161297597,-166.66,0.00015287,2]
[408126087,1773161297617,-1519.27,0.00015398,2]
[408126088,1773161297637,-166.66,0.00015602,2]
[408126089,1773161297659,-250.0,0.0001562,2]
[408126090,1773161297678,-500.0,0.00015625,2]
[408126091,1773161297700,-1500.0,0.00015859,2]
[408126092,1773161297723,-2000.0,0.0001589,2]
[408126093,1773161297753,-166.66,0.00015917,2]
[408126094,1773161297777,-162.49,0.00016169,2]
[408126095,1773161297797,-864.0,0.000162,2]
[408126096,1773161297818,-166.66,0.00016233,2]
[408126097,1773161297838,-200.0,0.00016353,2]
[408126098,1773161297860,-1200.0,0.00016399,2]
[408126099,1773161297881,-1212.3705941,0.000164,2]
[408126100,1773161297904,-380.3,0.00016438,2]
[408126101,1773161297924,-550.0,0.00016468,2]
[408126102,1773161297947,-2500.0,0.00016469,2]
[408126103,1773161297970,-2500.0,0.00016469,2]
[408126104,1773161297997,-500.0,0.00016469,2]
[408126105,1773161298017,-195.0,0.00016469,2]
[408126106,1773161298038,-195.0,0.00016469,2]
[408126107,1773161298060,-400.0,0.00016469,2]
[408126108,1773161298081,-250.0,0.00016469,2]
[408126109,1773161298102,-3881.10709555,0.00016469,2]
[408126110,1773161298127,-190.0,0.0001649,2]
[408126111,1773161298153,-1517.52138606,0.000165,5]
[408126112,1773161298175,-206.90591532,0.0001651,2]
[408126113,1773161298196,-224.8796,0.00016512,2]
[408126114,1773161298217,-10667.89872028,0.00016512,2]
[408126115,1773161298237,-11589.10539196,0.00016512,2]
[408126116,1773161298258,-3351.70654918,0.00016512,2]
[408126117,1773161298279,-166.66,0.00016548,2]
[408126118,1773161298298,-500.0,0.0001657,2]
[408126119,1773161298318,-1005.5,0.0001657,2]
[408126120,1773161298340,-497.005,0.00016575,2]
[408126121,1773161298363,-151.0,0.00016609,2]
[408126122,1773161298384,-151.0,0.00016609,2]
[408126123,1773161298405,-842.3,0.0001661,2]
[408126124,1773161298426,-500.0,0.00016611,2]
[408126125,1773161298448,-316.87372828,0.00016611,2]
[408126126,1773161298469,-634.10384496,0.00016611,2]
[408126127,1773161298490,-500.0,0.00016611,2]
[408126128,1773161298511,-181.34715684,0.00016611,2]
[408126129,1773161298534,-188.56142151,0.00016611,2]
[408126130,1773161298554,-500.0,0.00016611,2]
[408126131,1773161298579,-500.0,0.00016611,2]
[408126132,1773161298598,-363.60463077,0.00016611,2]
[408126133,1773161298620,-500.0,0.00016611,2]
[408126134,1773161298640,-500.0,0.00016611,2]
[408126135,1773161298665,-500.0,0.00016611,2]
[408126136,1773161298688,-500.0,0.00016611,2]
[408126137,1773161298710,-500.0,0.00016611,2]
[408126138,1773161298732,-500.0,0.00016611,2]
[408126139,1773161298755,-500.0,0.00016611,2]
[408126140,1773161298780,-500.0,0.00016611,2]
[408126141,1773161298815,-500.0,0.00016611,2]
[408126142,1773161298838,-500.0,0.00016611,2]
[408126143,1773161298860,-500.0,0.00016611,2]
[408126144,1773161298884,-500.0,0.00016611,2]
[408126145,1773161298910,-500.0,0.00016611,2]
[408126146,1773161298933,-500.0,0.00016611,2]
[408126147,1773161298956,-500.0,0.00016611,2]
[408126148,1773161298978,-500.0,0.00016611,2]
[408126149,1773161299002,-500.0,0.00016611,2]
[408126150,1773161299026,-500.0,0.00016611,2]
[408126151,1773161299049,-500.0,0.00016611,2]
[408126152,1773161299072,-500.0,0.00016611,2]
[408126153,1773161299095,-500.0,0.00016611,2]
[408126154,1773161299121,-500.0,0.00016611,2]
[408126155,1773161299143,-500.0,0.00016611,2]
[408126156,1773161299166,-500.0,0.00016611,2]
[408126157,1773161299189,-500.0,0.00016611,2]
[408126158,1773161299214,-500.0,0.00016611,2]
[408126159,1773161299242,-365.03483379,0.00016611,2]
[408126160,1773161299266,-500.0,0.00016611,2]
[408126161,1773161299291,-500.0,0.00016611,2]
[408126162,1773161299315,-500.0,0.00016611,2]
[408126163,1773161299338,-500.0,0.00016611,2]
[408126164,1773161299361,-500.0,0.00016611,2]
[408126165,1773161299384,-500.0,0.00016611,2]
[408126166,1773161299406,-500.0,0.00016611,2]
[408126167,1773161299429,-500.0,0.00016611,2]
[408126168,1773161299452,-500.0,0.00016611,2]
[408126169,1773161299475,-500.0,0.00016611,2]
[408126170,1773161299498,-500.0,0.00016611,2]
[408126171,1773161299522,-500.0,0.00016611,2]
[408126172,1773161299544,-500.0,0.00016611,2]
[408126173,1773161299567,-500.0,0.00016611,2]
[408126174,1773161299589,-500.0,0.00016611,2]
[408126175,1773161299613,-500.0,0.00016611,2]
[408126176,1773161299636,-236.50348338,0.00016611,2]
[408126177,1773161299664,-500.0,0.00016611,2]
[408126178,1773161299689,-500.0,0.00016611,2]
[408126179,1773161299714,-500.0,0.00016611,2]
[408126180,1773161299737,-500.0,0.00016611,2]
[408126181,1773161299761,-500.0,0.00016611,2]
[408126182,1773161299790,-500.0,0.00016611,2]
[408126183,1773161299815,-500.0,0.00016611,2]
[408126184,1773161299838,-500.0,0.00016611,2]
[408126185,1773161299862,-500.0,0.00016611,2]
[408126186,1773161299889,-500.0,0.00016611,2]
[408126187,1773161299912,-500.0,0.00016611,2]
[408126188,1773161299935,-500.0,0.00016611,2]
[408126189,1773161299960,-200.0,0.00016611,2]
[408126190,1773161299983,-500.0,0.00016611,2]
[408126191,1773161300008,-500.0,0.00016611,2]
[408126192,1773161300035,-500.0,0.00016611,2]
[408126193,1773161300061,-500.0,0.00016611,2]
[408126194,1773161300088,-500.0,0.00016611,2]
[408126195,1773161300118,-500.0,0.00016611,2]
[408126196,1773161300143,-500.0,0.00016611,2]
[408126197,1773161300169,-500.0,0.00016611,2]
[408126198,1773161300194,-500.0,0.00016611,2]
[408126199,1773161300219,-500.0,0.00016611,2]
[408126200,1773161300243,-500.0,0.00016611,2]
[408126201,1773161300267,-301.07447455,0.00016611,2]
[408126202,1773161300291,-500.0,0.00016611,2]
[408126203,1773161300316,-270.94104329,0.00016611,2]
[408126204,1773161300339,-523.95369856,0.00016611,2]
[408126205,1773161300361,-446.76574412,0.00016611,2]
[408126206,1773161300385,-500.0,0.00016611,2]
[408126207,1773161300416,-500.0,0.00016611,2]
[408126208,1773161300441,-500.0,0.00016611,2]
[408126209,1773161300466,-350.0,0.00016611,2]
[408126210,1773161300491,-500.0,0.00016611,2]
[408126211,1773161300921,-500.0,0.00016611,2]
[408126212,1773161300978,-500.0,0.00016611,2]
[408126213,1773161301043,-500.0,0.00016611,2]
[408126214,1773161301101,-500.0,0.00016611,2]
[408126215,1773161301146,-500.0,0.00016611,2]
[408126216,1773161301170,-500.0,0.00016611,2]
[408126217,1773161301193,-500.0,0.00016611,2]
[408126218,1773161301214,-500.0,0.00016611,2]
[408126219,1773161301236,-500.0,0.00016611,2]
[408126220,1773161301258,-500.0,0.00016611,2]
[408126221,1773161301278,-1061.27454404,0.00016611,5]
[408126222,1773161301299,-1061.27454403,0.00016611,5]
[408126223,1773161301317,-1061.27454403,0.00016611,5]
[408126224,1773161301336,-1061.27454403,0.00016611,5]
[408126225,1773161301356,-500.0,0.00016611,2]
[408126226,1773161301375,-500.0,0.00016611,2]
[408126227,1773161301398,-500.0,0.00016611,2]
[408126228,1773161301417,-500.0,0.00016611,2]
[408126229,1773161301436,-500.0,0.00016611,2]
[408126230,1773161301456,-500.0,0.00016611,2]
[408126231,1773161301475,-500.0,0.00016611,2]
[408126232,1773161301495,-500.0,0.00016611,2]
[408126233,1773161301513,-500.0,0.00016611,2]
[408126234,1773161301533,-500.0,0.00016611,2]
[408126235,1773161301552,-500.0,0.00016611,2]
[408126236,1773161301572,-500.0,0.00016611,2]
[408126237,1773161301594,-321.58,0.00016611,2]
[408126238,1773161301615,-500.0,0.00016611,2]
[408126239,1773161301639,-515.18156455,0.00016611,2]
[408126240,1773161301660,-500.0,0.00016611,2]
[408126241,1773161301680,-500.0,0.00016611,2]
[408126242,1773161301701,-500.0,0.00016611,2]
[408126243,1773161301726,-286127.1348049,0.00016612,2]
[408126244,1773161303938,685.056,0.0002,120]
[408126245,1773161326096,-292.21,0.000196,30]
[408126246,1773161326537,-185.0,0.00020311,120]
[408126247,1773161326563,-198.0,0.00020349,120]
[408126248,1773161326595,-1471.52758177,0.000209,30]
[408126249,1773161326632,-198.87,0.00022,30]
[408126250,1773161326659,-857.5,0.00022435,120]
[408126251,1773161326683,-600.0,0.00022435,120]
[408126252,1773161326708,-360.0,0.00022435,120]
[408126253,1773161326732,-216.0,0.00022435,120]
[408126254,1773161326757,-180.0,0.00022803,120]
[408126255,1773161326781,-189.0,0.00022832,120]
[408126256,1773161326807,-4557.745333,0.00023686,30]
[408126257,1773161326830,-7062.300855,0.00023686,30]
[408126258,1773161326857,-378.0,0.00025,120]
[408126259,1773161326880,-5142.95970305,0.00025,45]
[408126260,1773161326905,-160.0,0.00025,30]
[408126261,1773161326930,-198.87,0.00026267,30]
[408126262,1773161326954,-500.0,0.00026434,120]
[408126263,1773161326980,-647.58,0.000269,30]
[408126264,1773161327005,-4567.0,0.00027397,120]
[408126265,1773161327030,-500.0,0.00027397,120]
[408126266,1773161327056,-500.0,0.00027397,120]
[408126267,1773161327080,-1000.0,0.000279,30]
[408126268,1773161327104,-251.77589888,0.0002792,30]
[408126269,1773161327130,-937.77,0.00028,30]
[408126270,1773161327155,-200.0,0.000284,120]
[408126271,1773161327179,-553.190403,0.00028434,120]
[408126272,1773161327203,-1444.0,0.00029041,120]
[408126273,1773161327228,-251.77589888,0.000299,60]
[408126274,1773161327255,-1246.51240558,0.0003,30]
[408126275,1773161327279,-1249.6,0.0003,30]
[408126276,1773161327308,-150.0,0.0003,32]
[408126277,1773161327332,-3372.0,0.0003,120]
[408126278,1773161327357,-543.0,0.0003,120]
[408126279,1773161327381,-151.46814249,0.0003,120]
[408126280,1773161327407,-2112.16330124,0.0003,120]
[408126281,1773161327432,-5000.0,0.0003,60]
[408126282,1773161327456,-160.0,0.0003,120]
[408126283,1773161327479,-271.00157295,0.0003,120]
[408126284,1773161327503,-4283.4683808,0.0003,120]
[408126285,1773161327528,-3123.0,0.00030137,120]
[408126286,1773161327553,-198.87,0.00030534,60]
[408126287,1773161327576,-1000.0,0.000308,30]
[408126288,1773161327600,-212.93624101,0.00030804,120]
[408126289,1773161327625,-20871.27663512,0.0003081,34]
[408126290,1773161327650,-266.452,0.0003092,120]
[408126291,1773161327677,-2536.18956926,0.00031,30]
[408126292,1773161327703,-150.0,0.00031,34]
[408126293,1773161327727,-160.0,0.00031,120]
[408126294,1773161327751,-368.0,0.000311,30]
[408126295,1773161327775,-170.44444107,0.00031225,120]
[408126296,1773161327803,-290.47492389,0.00031225,120]
[408126297,1773161327827,-10634.739111,0.00031582,30]
[408126298,1773161327852,-16478.701995,0.00031582,30]
[408126299,1773161327877,-212.93624101,0.00031751,120]
[408126300,1773161327902,-251.77589888,0.0003188,60]
[408126301,1773161327926,-2376.41753778,0.00032,65]
[408126302,1773161327952,-1000.0,0.00032,30]
[408126303,1773161327977,-308.0,0.00032,120]
[408126304,1773161328000,-3266.43155776,0.00032,120]
[408126305,1773161328025,-150.0,0.00032,37]
[408126306,1773161328048,-3650.96,0.00032,120]
[408126307,1773161328074,-1538.90551333,0.00032,120]
[408126308,1773161328099,-1076.01,0.00032,120]
[408126309,1773161328126,-3174.56243169,0.000325,30]
[408126310,1773161328151,-170.44444107,0.00032697,120]
[408126311,1773161328175,-214.0,0.0003286,30]
[408126312,1773161328204,-2000.0,0.00032876,32]
[408126313,1773161328231,-211.0,0.00032877,120]
[408126314,1773161328255,-598.65110006,0.000329,60]
[408126315,1773161328279,-3266.43155776,0.00033,120]
[408126316,1773161328304,-150.0,0.00033,40]
[408126317,1773161328328,-1538.90551333,0.00033,120]
[408126318,1773161328352,-188.0,0.00033567,30]
[408126319,1773161328376,-380.3,0.00033742,30]
[408126320,1773161328400,-1392.75741937,0.00033859,40]
[408126321,1773161328425,-251.77589888,0.00033859,120]
[408126322,1773161328449,-3266.43155776,0.000339,120]
[408126323,1773161328472,-1538.90551333,0.000339,120]
[408126324,1773161328497,-939.89968758,0.00033973,120]
[408126325,1773161328521,-250.0,0.00034,120]
[408126326,1773161328547,-150.0,0.00034,43]
[408126327,1773161328823,-400.0,0.00034128,30]
[408126328,1773161328872,-400.0,0.00034128,30]
[408126329,1773161328897,-159.65868524,0.00034128,30]
[408126330,1773161328922,-383.66,0.00034712,30]
[408126331,1773161328946,-8757.26,0.00034712,30]
[408126332,1773161328969,-203.64,0.00034712,30]
[408126333,1773161328993,-198.87,0.00034801,60]
[408126334,1773161329019,-405.80803451,0.0003488,120]
[408126335,1773161329043,-214.0,0.0003488,30]
[408126336,1773161329070,-183.7324873,0.00035,30]
[408126337,1773161329094,-2691.08229165,0.00035,30]
[408126338,1773161329120,-2279.45023557,0.00035,30]
[408126339,1773161329144,-181.07916474,0.00035,40]
[408126340,1773161329168,-1000.0,0.00035,30]
[408126341,1773161329193,-3192.59575865,0.00035,120]
[408126342,1773161329216,-2938.32925154,0.00035,60]
[408126343,1773161329240,-1312.91314302,0.00035,120]
[408126344,1773161329263,-853.23498974,0.00035,120]
[408126345,1773161329287,-3266.43155776,0.00035,120]
[408126346,1773161329312,-300.0,0.00035,30]
[408126347,1773161329336,-331.0,0.00035,30]
[408126348,1773161329364,-157.57161251,0.00035,120]
[408126349,1773161329388,-150.0,0.00035,46]
[408126350,1773161329413,-3000.0,0.00035,120]
[408126351,1773161329437,-462.73,0.00035,120]
[408126352,1773161329461,-10000.0,0.00035,120]
[408126353,1773161329484,-500.0,0.00035,60]
[408126354,1773161329509,-895.82950575,0.00035,120]
[408126355,1773161329534,-10756.0,0.00035,120]
[408126356,1773161329558,-1538.90551333,0.00035,120]
[408126357,1773161329583,-380.3,0.00035184,30]
[408126358,1773161329608,-326.70021166,0.00035589,120]
[408126359,1773161329632,-527.67992398,0.000356,120]
[408126360,1773161329657,-2000.0,0.00035616,120]
[408126361,1773161329681,-500.0,0.00035616,120]
[408126362,1773161329706,-365.0,0.00035616,120]
[408126363,1773161329735,-2527.02497751,0.00035616,30]
[408126364,1773161329759,-100000.0,0.00035616,30]
[408126365,1773161329782,-2520.71025663,0.00035616,30]
[408126366,1773161329807,-189.87863223,0.00035616,30]
[408126367,1773161329832,-10000.0,0.00035678,31]
[408126368,1773161329858,-400.0,0.000358,120]
[408126369,1773161329881,-1730.8945,0.00035911,120]
[408126370,1773161329906,-1282.09,0.00036,120]
[408126371,1773161329933,-400.0,0.00036,120]
[408126372,1773161329958,-300.0,0.00036,120]
[408126373,1773161329982,-1000.0,0.00036,30]
[408126374,1773161330005,-332.37272747,0.00036,120]
[408126375,1773161330028,-3266.43155776,0.00036,120]
[408126376,1773161330055,-228.0,0.00036,49]
[408126377,1773161330079,-1538.90551333,0.00036,120]
[408126378,1773161330106,-380.3,0.00036626,30]
[408126379,1773161330135,-211.02487237,0.00036677,38]
[408126380,1773161330160,-1690.65967554,0.000367,120]
[408126381,1773161330185,-214.0,0.0003689,30]
[408126382,1773161330212,-1801.97340077,0.000369,120]
[408126383,1773161330238,-1839.0,0.000369,120]
[408126384,1773161330264,-500.0,0.00036986,120]
[408126385,1773161330289,-500.0,0.00036986,120]
[408126386,1773161330314,-2000.0,0.00037,30]
[408126387,1773161330339,-500.0,0.00037,60]
[408126388,1773161330364,-1000.0,0.00037,30]
[408126389,1773161330390,-53979.57,0.00037,120]
[408126390,1773161330414,-1000.0,0.00037001,120]
[408126391,1773161330441,-3266.43155776,0.000371,120]
[408126392,1773161330467,-54170.49349963,0.000372,120]
[408126393,1773161330492,-54170.4934996,0.000372,120]
[408126394,1773161330517,-54170.4934996,0.000372,120]
[408126395,1773161330543,-54170.4934996,0.000372,120]
[408126396,1773161330568,-54170.4934996,0.000372,120]
[408126397,1773161330593,-151.95349428,0.00037212,120]
[408126398,1773161330617,-587.45,0.0003726,120]
[408126399,1773161330641,-573.86,0.0003726,120]
[408126400,1773161330665,-569.17,0.0003726,120]
[408126401,1773161330690,-565.18,0.0003726,120]
[408126402,1773161330714,-566.53,0.0003726,120]
[408126403,1773161330741,-151.94873142,0.00037323,42]
[408126404,1773161330766,-150.0,0.000375,120]
[408126405,1773161330793,-250.0,0.00037635,46]
[408126406,1773161330818,-2000.0,0.000378,120]
[408126407,1773161330843,-2000.0,0.000378,120]
[408126408,1773161330867,-721.0,0.000378,120]
[408126409,1773161330892,-4500.0,0.0003788,120]
[408126410,1773161330918,-601.59,0.000379,120]
[408126411,1773161330943,-1006.83,0.00038,120]
[408126412,1773161330968,-547.23527333,0.00038,120]
[408126413,1773161330992,-3054.59183143,0.00038,120]
[408126414,1773161331018,-300.0,0.00038,120]
[408126415,1773161331043,-3000.0,0.00038,30]
[408126416,1773161331067,-250.0,0.00038,120]
[408126417,1773161331091,-500.0,0.00038,61]
[408126418,1773161331118,-160.52920519,0.00038,120]
[408126419,1773161331143,-4562.0,0.00038,120]
[408126420,1773161331167,-380.3,0.00038068,30]
[408126421,1773161331192,-1459.55011305,0.000381,33]
[408126422,1773161331220,-279.06641705,0.000381,33]
[408126423,1773161331244,-260.34389618,0.000381,33]
[408126424,1773161331269,-9006.5371147,0.000381,33]
[408126425,1773161331295,-9006.5371147,0.000381,33]
[408126426,1773161331322,-337.91533227,0.000381,33]
[408126427,1773161331346,-3266.43155776,0.000382,120]
[408126428,1773161331370,-2898.0,0.00038329,120]
[408126429,1773161331394,-3403.4,0.00038329,120]
[408126430,1773161331418,-3091.2,0.00038329,120]
[408126431,1773161331668,-3210.2,0.00038329,120]
[408126432,1773161331693,-2239.3,0.00038329,120]
[408126433,1773161331716,-2076.9,0.00038329,120]
[408126434,1773161331740,-3253.6,0.00038329,120]
[408126435,1773161331765,-2592.1,0.00038329,120]
[408126436,1773161331792,-2809.1,0.00038329,120]
[408126437,1773161331820,-1932.7,0.00038329,120]
[408126438,1773161331847,-3045.0,0.00038329,120]
[408126439,1773161331872,-3330.6,0.00038329,120]
[408126440,1773161331899,-1644.3,0.00038329,120]
[408126441,1773161331926,-2068.5,0.00038329,120]
[408126442,1773161331953,-3413.0,0.00038356,120]
[408126443,1773161331980,-2000.0,0.00038356,120]
[408126444,1773161332006,-2185.0,0.00038356,120]
[408126445,1773161332033,-500.0,0.00038356,120]
[408126446,1773161332060,-500.0,0.00038356,120]
[408126447,1773161332086,-500.0,0.00038356,120]
[408126448,1773161332116,-500.0,0.00038356,120]
[408126449,1773161332152,-266.0,0.00038356,120]
[408126450,1773161332179,-181.070194,0.00038356,120]
[408126451,1773161332207,-1076.01,0.000384,120]
[408126452,1773161332235,-500.0,0.000387,120]
[408126453,1773161332258,-500.0,0.000387,120]
[408126454,1773161332282,-500.0,0.000387,120]
[408126455,1773161332306,-500.0,0.000387,120]
[408126456,1773161332329,-500.0,0.000387,120]
[408126457,1773161332353,-500.0,0.000387,120]
[408126458,1773161332376,-500.0,0.000387,120]
[408126459,1773161332400,-500.0,0.000387,120]
[408126460,1773161332424,-500.0,0.000387,120]
[408126461,1773161332448,-500.0,0.000387,120]
[408126462,1773161332471,-500.0,0.000387,120]
[408126463,1773161332495,-500.0,0.000387,120]
[408126464,1773161332520,-500.0,0.000387,120]
[408126465,1773161332544,-500.0,0.000387,120]
[408126466,1773161332567,-500.0,0.000387,120]
[408126467,1773161332591,-500.0,0.000387,120]
[408126468,1773161332615,-500.0,0.000387,120]
[408126469,1773161332639,-500.0,0.000387,120]
[408126470,1773161332662,-500.0,0.000387,120]
[408126471,1773161332687,-500.0,0.000387,120]
[408126472,1773161332711,-287.74,0.00038831,120]
[408126473,1773161332735,-8757.26,0.00038831,120]
[408126474,1773161332758,-203.64,0.00038831,120]
[408126475,1773161332781,-230.61280647,0.00038865,60]
[408126476,1773161332804,-500.0,0.00038865,60]
[408126477,1773161332828,-3426.654,0.00038888,30]
[408126478,1773161332852,-18940.78195321,0.000389,30]
[408126479,1773161332875,-1752.83,0.000389,120]
[408126480,1773161332898,-476.50560637,0.000389,120]
[408126481,1773161332921,-249.34062527,0.00038904,90]
[408126482,1773161332944,-214.0,0.0003891,30]
[408126483,1773161332967,-2007.59706596,0.0003898,30]
[408126484,1773161332990,-1748.12370982,0.00039,70]
[408126485,1773161333013,-13321.8404305,0.00039,120]
[408126486,1773161333037,-2268.09192996,0.00039,120]
[408126487,1773161333060,-3000.0,0.00039,30]
[408126488,1773161333084,-3000.0,0.00039,30]
[408126489,1773161333108,-3000.0,0.00039,30]
[408126490,1773161333135,-250.0,0.00039,120]
[408126491,1773161333159,-500.0,0.00039,62]
[408126492,1773161333182,-35000.0,0.00039,120]
[408126493,1773161333206,-153.25503773,0.00039,120]
[408126494,1773161333229,-5000.0,0.00039,30]
[408126495,1773161333254,-198.87,0.00039068,90]
[408126496,1773161333277,-779.61070856,0.000391,120]
[408126497,1773161333302,-188.70717891,0.00039103,80]
[408126498,1773161333327,-159.33817025,0.00039219,81]
[408126499,1773161333351,-5768.98,0.0003928,90]
[408126500,1773161333375,-26007.78951215,0.0003928,81]
[408126501,1773161333398,-1743.02055805,0.000393,30]
[408126502,1773161333421,-3266.43155776,0.000394,120]
[408126503,1773161333445,-380.3,0.0003951,30]
[408126504,1773161333470,-311.59823318,0.00039582,56]
[408126505,1773161333493,-500.0,0.00039726,60]
[408126506,1773161333516,-500.0,0.00039726,60]
[408126507,1773161333540,-500.0,0.00039726,60]